[Event "Late-Titled-Tuesday-Blitz-November-28-2023"]
[Site "Chess.com"]
[Date "2023.11.28"]
[Round "10"]
[White "egnfanclub"]
[Black "Elbebiber"]
[Result "1-0"]
[WhiteElo "2325"]
[BlackElo "2135"]
[TimeControl "180+1"]
[EndTime "15:50:03 PST"]
[Termination "egnfanclub won by resignation"]

1. e4 {[%clk 0:03:00.9]} 1... c6 {[%clk 0:02:56.2]} 2. d4 {[%clk 0:03:00.4]}
2... d5 {[%clk 0:02:56]} 3. exd5 {[%clk 0:03:01.3]} 3... cxd5 {[%clk 0:02:55.3]}
4. c4 {[%clk 0:03:01.9]} 4... Nf6 {[%clk 0:02:48.1]} 5. Nc3 {[%clk 0:03:01.4]}
5... Nc6 {[%clk 0:02:46.6]} 6. Nf3 {[%clk 0:03:00.8]} 6... Bg4 {[%clk 0:02:46]}
7. cxd5 {[%clk 0:03:00.8]} 7... Nxd5 {[%clk 0:02:43.3]} 8. Qb3 {[%clk
0:03:00.8]} 8... Bxf3 {[%clk 0:02:41.2]} 9. gxf3 {[%clk 0:03:00.2]} 9... e6
{[%clk 0:02:34.6]} 10. Qxb7 {[%clk 0:02:59.2]} 10... Nxd4 {[%clk 0:02:31.8]} 11.
Bb5+ {[%clk 0:02:58.9]} 11... Nxb5 {[%clk 0:02:29.6]} 12. Qc6+ {[%clk
0:02:59.5]} 12... Ke7 {[%clk 0:02:19.8]} 13. Qxb5 {[%clk 0:02:59.3]} 13... Qd7
{[%clk 0:01:50]} 14. Nxd5+ {[%clk 0:02:58.2]} 14... Qxd5 {[%clk 0:01:44.8]} 15.
Bg5+ {[%clk 0:02:58.1]} 15... f6 {[%clk 0:01:43.9]} 16. Qxd5 {[%clk 0:02:58.4]}
16... exd5 {[%clk 0:01:44.1]} 17. Be3 {[%clk 0:02:59.1]} 17... Kf7 {[%clk
0:01:39.3]} 18. O-O-O {[%clk 0:03:00]} 18... Rc8+ {[%clk 0:01:28.2]} 19. Kb1
{[%clk 0:02:59.7]} 19... Rc7 {[%clk 0:01:18.1]} 20. Rxd5 {[%clk 0:02:59]} 20...
Be7 {[%clk 0:01:16.3]} 21. Ra5 {[%clk 0:02:55.3]} 21... Ra8 {[%clk 0:01:11.2]}
22. Rc1 {[%clk 0:02:55]} 22... Rb7 {[%clk 0:01:09.2]} 23. Rc6 {[%clk 0:02:51.7]}
23... Rd7 {[%clk 0:00:48.6]} 24. a3 {[%clk 0:02:35.3]} 24... Bd6 {[%clk
0:00:38.1]} 25. Rd5 {[%clk 0:02:09.1]} 25... Ke7 {[%clk 0:00:25.2]} 26. Rdxd6
{[%clk 0:02:05.5]} 26... Rxd6 {[%clk 0:00:23.7]} 27. Bc5 {[%clk 0:02:05.4]}
27... Rd8 {[%clk 0:00:22.3]} 28. Kc2 {[%clk 0:02:01.4]} 28... Ke6 {[%clk
0:00:22.1]} 29. Rxd6+ {[%clk 0:01:59.8]} 29... Rxd6 {[%clk 0:00:23]} 30. Bxd6
{[%clk 0:02:00]} 30... Kxd6 {[%clk 0:00:23.4]} 31. Kd3 {[%clk 0:01:58.8]} 31...
a5 {[%clk 0:00:20]} 32. Ke4 {[%clk 0:01:57.6]} 32... g6 {[%clk 0:00:17.7]} 33.
Kd4 {[%clk 0:01:56.9]} 33... a4 {[%clk 0:00:15.5]} 34. Kc4 {[%clk 0:01:51.3]}
34... Ke5 {[%clk 0:00:16]} 35. Kb4 {[%clk 0:01:51.3]} 35... Kf4 {[%clk
0:00:16.6]} 36. Kxa4 {[%clk 0:01:51.7]} 36... Kxf3 {[%clk 0:00:17.3]} 37. b4
{[%clk 0:01:52.5]} 37... Kxf2 {[%clk 0:00:17.3]} 38. b5 {[%clk 0:01:53.4]} 1-0

[Event "Late-Titled-Tuesday-Blitz-November-28-2023"]
[Site "Chess.com"]
[Date "2023.11.28"]
[Round "10"]
[White "Yushko_Olga"]
[Black "inagreV"]
[Result "1-0"]
[WhiteElo "2156"]
[BlackElo "2386"]
[TimeControl "180+1"]
[EndTime "15:50:13 PST"]
[Termination "Yushko_Olga won by resignation"]

1. d4 {[%clk 0:02:58.7]} 1... d5 {[%clk 0:02:55.9]} 2. c4 {[%clk 0:02:58.1]}
2... e6 {[%clk 0:02:55.4]} 3. cxd5 {[%clk 0:02:58]} 3... exd5 {[%clk 0:02:54.9]}
4. Nc3 {[%clk 0:02:58.9]} 4... c6 {[%clk 0:02:55.1]} 5. Nf3 {[%clk 0:02:59.6]}
5... Nf6 {[%clk 0:02:51.1]} 6. Bg5 {[%clk 0:02:58.3]} 6... Be7 {[%clk
0:02:47.8]} 7. e3 {[%clk 0:02:58.6]} 7... Bf5 {[%clk 0:02:47.4]} 8. Bd3 {[%clk
0:02:59.2]} 8... Bxd3 {[%clk 0:02:47.4]} 9. Qxd3 {[%clk 0:03:00.1]} 9... Nbd7
{[%clk 0:02:45.5]} 10. O-O {[%clk 0:03:00]} 10... O-O {[%clk 0:02:38.8]} 11.
Rfe1 {[%clk 0:02:57.9]} 11... Re8 {[%clk 0:02:38.6]} 12. a3 {[%clk 0:02:53.6]}
12... h6 {[%clk 0:02:38.3]} 13. Bh4 {[%clk 0:02:53.1]} 13... a5 {[%clk
0:02:32.6]} 14. Rac1 {[%clk 0:02:47.2]} 14... Qb6 {[%clk 0:02:30.1]} 15. Na4
{[%clk 0:02:46.5]} 15... Qa7 {[%clk 0:02:24.4]} 16. Qf5 {[%clk 0:02:36.8]} 16...
b5 {[%clk 0:02:10]} 17. Nc3 {[%clk 0:02:36.6]} 17... g6 {[%clk 0:01:56.7]} 18.
Qh3 {[%clk 0:02:35.2]} 18... Kg7 {[%clk 0:01:52.7]} 19. Ne2 {[%clk 0:02:31.5]}
19... Qb7 {[%clk 0:01:35.3]} 20. Bxf6+ {[%clk 0:02:24.4]} 20... Bxf6 {[%clk
0:01:31.4]} 21. Nf4 {[%clk 0:02:22.7]} 21... Nb6 {[%clk 0:01:29.4]} 22. Nd3
{[%clk 0:02:14.4]} 22... a4 {[%clk 0:01:24.8]} 23. Nfe5 {[%clk 0:02:07.7]} 23...
Nc4 {[%clk 0:01:23.6]} 24. Ng4 {[%clk 0:01:58.5]} 24... h5 {[%clk 0:01:16.6]}
25. Nxf6 {[%clk 0:01:58]} 25... Kxf6 {[%clk 0:01:17.1]} 26. Nc5 {[%clk
0:01:47.3]} 26... Qc8 {[%clk 0:01:15.4]} 27. Qh4+ {[%clk 0:01:44.7]} 27... Kg7
{[%clk 0:01:15.3]} 28. e4 {[%clk 0:01:42.5]} 28... Qg4 {[%clk 0:01:09.4]} 29.
Qxg4 {[%clk 0:01:30.2]} 29... hxg4 {[%clk 0:01:10.3]} 30. exd5 {[%clk
0:01:29.8]} 30... cxd5 {[%clk 0:01:09.6]} 31. Nd3 {[%clk 0:01:27.7]} 31... Re4
{[%clk 0:01:06.7]} 32. Rxe4 {[%clk 0:01:18.4]} 32... dxe4 {[%clk 0:01:06.4]} 33.
Nc5 {[%clk 0:01:18.6]} 33... f5 {[%clk 0:01:01.7]} 34. Rc2 {[%clk 0:01:17.3]}
34... Rd8 {[%clk 0:01:00.8]} 35. Ne6+ {[%clk 0:01:15.1]} 35... Kf6 {[%clk
0:01:00.4]} 36. Nxd8 {[%clk 0:01:15.2]} 1-0

[Event "Late-Titled-Tuesday-Blitz-November-28-2023"]
[Site "Chess.com"]
[Date "2023.11.28"]
[Round "10"]
[White "koncheto"]
[Black "VitaliyChayka"]
[Result "1-0"]
[WhiteElo "2528"]
[BlackElo "2418"]
[TimeControl "180+1"]
[EndTime "15:50:16 PST"]
[Termination "koncheto won by checkmate"]

1. e4 {[%clk 0:02:08.7]} 1... d6 {[%clk 0:02:59.7]} 2. d4 {[%clk 0:02:03]} 2...
Nf6 {[%clk 0:02:59.8]} 3. Bd3 {[%clk 0:02:03]} 3... e5 {[%clk 0:02:57.4]} 4. c3
{[%clk 0:02:03.1]} 4... g6 {[%clk 0:02:57.2]} 5. f4 {[%clk 0:02:03]} 5... exd4
{[%clk 0:02:57.5]} 6. cxd4 {[%clk 0:02:03.1]} 6... c5 {[%clk 0:02:57]} 7. e5
{[%clk 0:02:01.6]} 7... Nd5 {[%clk 0:02:52.3]} 8. Nf3 {[%clk 0:01:58.3]} 8...
Nc6 {[%clk 0:02:48.7]} 9. Be4 {[%clk 0:01:49]} 9... Be6 {[%clk 0:02:34.9]} 10.
Nc3 {[%clk 0:01:45.6]} 10... Nxc3 {[%clk 0:02:22.9]} 11. bxc3 {[%clk 0:01:46.5]}
11... d5 {[%clk 0:02:19.4]} 12. Bd3 {[%clk 0:01:39.2]} 12... Be7 {[%clk
0:02:12.6]} 13. Rb1 {[%clk 0:01:36.4]} 13... Qc7 {[%clk 0:02:07.2]} 14. O-O
{[%clk 0:01:35.5]} 14... O-O {[%clk 0:01:59.5]} 15. f5 {[%clk 0:01:27.8]} 15...
Bxf5 {[%clk 0:01:46.2]} 16. Bxf5 {[%clk 0:01:23.8]} 16... gxf5 {[%clk
0:01:47.1]} 17. Ng5 {[%clk 0:01:22.1]} 17... cxd4 {[%clk 0:01:40.8]} 18. Qh5
{[%clk 0:01:20.3]} 18... Bxg5 {[%clk 0:01:36.4]} 19. Qxg5+ {[%clk 0:01:20.4]}
19... Kh8 {[%clk 0:01:36.5]} 20. Qf6+ {[%clk 0:01:19.2]} 20... Kg8 {[%clk
0:01:35.5]} 21. Rf3 {[%clk 0:00:33.8]} 21... Rfe8 {[%clk 0:00:53.9]} 22. Rg3+
{[%clk 0:00:28.2]} 22... Kf8 {[%clk 0:00:53.4]} 23. Bh6# {[%clk 0:00:28.6]} 1-0

[Event "Late-Titled-Tuesday-Blitz-November-28-2023"]
[Site "Chess.com"]
[Date "2023.11.28"]
[Round "10"]
[White "serena-maria"]
[Black "Jahonas"]
[Result "0-1"]
[WhiteElo "2337"]
[BlackElo "2429"]
[TimeControl "180+1"]
[EndTime "15:50:18 PST"]
[Termination "Jahonas won by checkmate"]

1. e4 {[%clk 0:03:00.9]} 1... c6 {[%clk 0:02:59.6]} 2. d4 {[%clk 0:03:00.6]}
2... d5 {[%clk 0:02:59.9]} 3. f3 {[%clk 0:03:01.2]} 3... dxe4 {[%clk 0:03:00]}
4. fxe4 {[%clk 0:03:02.1]} 4... e5 {[%clk 0:03:00.2]} 5. Nf3 {[%clk 0:03:01.9]}
5... Bg4 {[%clk 0:03:00.1]} 6. dxe5 {[%clk 0:02:52]} 6... Qxd1+ {[%clk
0:02:58.2]} 7. Kxd1 {[%clk 0:02:52.1]} 7... Nd7 {[%clk 0:02:57.8]} 8. Bf4 {[%clk
0:02:51.5]} 8... Ne7 {[%clk 0:02:54]} 9. e6 {[%clk 0:02:27.4]} 9... Bxe6 {[%clk
0:02:52.8]} 10. Bd3 {[%clk 0:02:26.5]} 10... Ng6 {[%clk 0:02:52.2]} 11. Bg3
{[%clk 0:02:25.9]} 11... O-O-O {[%clk 0:02:48.4]} 12. Nbd2 {[%clk 0:02:25.8]}
12... Nc5 {[%clk 0:02:46.1]} 13. Ke2 {[%clk 0:02:25.2]} 13... Bd6 {[%clk
0:02:42.9]} 14. e5 {[%clk 0:02:01.5]} 14... Be7 {[%clk 0:02:42.3]} 15. Bxg6
{[%clk 0:01:52.8]} 15... hxg6 {[%clk 0:02:40.7]} 16. b4 {[%clk 0:01:45.6]} 16...
Na4 {[%clk 0:02:40]} 17. Nb3 {[%clk 0:01:39.8]} 17... Nc3+ {[%clk 0:02:37.5]}
18. Ke3 {[%clk 0:01:34]} 18... g5 {[%clk 0:02:32.9]} 19. a3 {[%clk 0:01:29.2]}
19... g4 {[%clk 0:02:32.2]} 20. Nfd4 {[%clk 0:01:27.3]} 20... Bxb3 {[%clk
0:02:11.2]} 21. Nxb3 {[%clk 0:01:22.8]} 21... Bg5+ {[%clk 0:02:04.9]} 22. Kf2
{[%clk 0:01:22.3]} 22... Ne4+ {[%clk 0:02:01.7]} 23. Ke2 {[%clk 0:01:14.6]}
23... Nxg3+ {[%clk 0:01:59.2]} 24. hxg3 {[%clk 0:01:14.2]} 24... Rhe8 {[%clk
0:01:58.6]} 25. Rhe1 {[%clk 0:00:49.5]} 25... Rxe5+ {[%clk 0:01:56.3]} 26. Kf1
{[%clk 0:00:49.8]} 26... Rf5+ {[%clk 0:01:52.9]} 27. Kg1 {[%clk 0:00:49.7]}
27... Bf6 {[%clk 0:01:18.2]} 28. Rab1 {[%clk 0:00:39.9]} 28... Rd2 {[%clk
0:01:02]} 29. Nxd2 {[%clk 0:00:39.1]} 29... Bd4+ {[%clk 0:01:00.9]} 30. Kh2
{[%clk 0:00:36.3]} 30... Rh5# {[%clk 0:01:01]} 0-1

[Event "Late-Titled-Tuesday-Blitz-November-28-2023"]
[Site "Chess.com"]
[Date "2023.11.28"]
[Round "10"]
[White "cthake"]
[Black "falzehope0"]
[Result "0-1"]
[WhiteElo "1930"]
[BlackElo "2333"]
[TimeControl "180+1"]
[EndTime "15:50:23 PST"]
[Termination "falzehope0 won by resignation"]

1. e4 {[%clk 0:03:00.1]} 1... d6 {[%clk 0:02:58.9]} 2. d4 {[%clk 0:02:59.5]}
2... Nf6 {[%clk 0:02:59.5]} 3. Nc3 {[%clk 0:02:58.8]} 3... Nbd7 {[%clk
0:02:57.2]} 4. f4 {[%clk 0:02:58.6]} 4... e5 {[%clk 0:02:57.1]} 5. dxe5 {[%clk
0:02:42.2]} 5... dxe5 {[%clk 0:02:56.7]} 6. Nf3 {[%clk 0:02:37]} 6... Bb4 {[%clk
0:02:48]} 7. Bd3 {[%clk 0:02:30.8]} 7... Nc5 {[%clk 0:02:37.5]} 8. O-O {[%clk
0:02:26.6]} 8... O-O {[%clk 0:02:31.1]} 9. Nxe5 {[%clk 0:02:24.7]} 9... Bxc3
{[%clk 0:02:28.8]} 10. bxc3 {[%clk 0:02:23.8]} 10... Ncxe4 {[%clk 0:02:28.1]}
11. Bb2 {[%clk 0:02:14.3]} 11... Qe7 {[%clk 0:02:21.9]} 12. Qf3 {[%clk
0:02:10.2]} 12... Qc5+ {[%clk 0:02:02.8]} 13. Kh1 {[%clk 0:02:07.6]} 13... Nd6
{[%clk 0:01:56.4]} 14. c4 {[%clk 0:02:01.8]} 14... h6 {[%clk 0:01:53.3]} 15.
Rae1 {[%clk 0:01:52.2]} 15... Be6 {[%clk 0:01:34.8]} 16. Qe2 {[%clk 0:01:26.9]}
16... Rfe8 {[%clk 0:01:29.3]} 17. f5 {[%clk 0:01:22.8]} 17... Bd7 {[%clk
0:01:19.5]} 18. Nxd7 {[%clk 0:01:10.3]} 18... Nxd7 {[%clk 0:01:20.4]} 19. Qg4
{[%clk 0:01:08.6]} 19... f6 {[%clk 0:01:14.7]} 20. Bd4 {[%clk 0:00:58.2]} 20...
Qb4 {[%clk 0:00:53.4]} 21. Re6 {[%clk 0:00:56.4]} 21... Nxc4 {[%clk 0:00:38.6]}
22. Bxf6 {[%clk 0:00:49.4]} 22... Nxf6 {[%clk 0:00:32.8]} 23. Bxc4 {[%clk
0:00:49.1]} 23... Nxg4 {[%clk 0:00:31.2]} 24. Rb6+ {[%clk 0:00:45.7]} 24... Qxc4
{[%clk 0:00:30]} 0-1

[Event "Late-Titled-Tuesday-Blitz-November-28-2023"]
[Site "Chess.com"]
[Date "2023.11.28"]
[Round "10"]
[White "e4evr"]
[Black "KorolDimitriy75"]
[Result "0-1"]
[WhiteElo "2133"]
[BlackElo "2302"]
[TimeControl "180+1"]
[EndTime "15:50:25 PST"]
[Termination "KorolDimitriy75 won by checkmate"]

1. d4 {[%clk 0:03:00.1]} 1... Nf6 {[%clk 0:02:59.6]} 2. c4 {[%clk 0:02:59.9]}
2... c5 {[%clk 0:02:59.7]} 3. d5 {[%clk 0:02:59.8]} 3... b5 {[%clk 0:03:00]} 4.
e3 {[%clk 0:03:00.2]} 4... bxc4 {[%clk 0:02:52]} 5. Bxc4 {[%clk 0:03:01.1]} 5...
d6 {[%clk 0:02:50.6]} 6. Nc3 {[%clk 0:03:00.8]} 6... g6 {[%clk 0:02:51.2]} 7.
Qe2 {[%clk 0:03:00.2]} 7... Bg7 {[%clk 0:02:51.2]} 8. Nf3 {[%clk 0:03:00.7]}
8... O-O {[%clk 0:02:50.5]} 9. O-O {[%clk 0:03:00.8]} 9... Nbd7 {[%clk
0:02:51.4]} 10. e4 {[%clk 0:02:55.5]} 10... Nb6 {[%clk 0:02:50.6]} 11. Nd2
{[%clk 0:02:54.7]} 11... Nxc4 {[%clk 0:02:40.8]} 12. Nxc4 {[%clk 0:02:54.1]}
12... Ba6 {[%clk 0:02:38.6]} 13. f4 {[%clk 0:02:53.8]} 13... Rb8 {[%clk
0:02:23.4]} 14. a3 {[%clk 0:02:44.7]} 14... Nd7 {[%clk 0:02:04.3]} 15. a4 {[%clk
0:02:41.8]} 15... Bxc3 {[%clk 0:01:50.7]} 16. bxc3 {[%clk 0:02:41.6]} 16... Nb6
{[%clk 0:01:50.9]} 17. f5 {[%clk 0:02:40.3]} 17... Bxc4 {[%clk 0:01:50]} 18. Qg4
{[%clk 0:02:40.3]} 18... Bxf1 {[%clk 0:01:47]} 19. Bh6 {[%clk 0:02:40.1]} 19...
Ba6 {[%clk 0:01:27.6]} 20. h4 {[%clk 0:02:32.7]} 20... Nd7 {[%clk 0:01:19.9]}
21. h5 {[%clk 0:02:32.4]} 21... Nf6 {[%clk 0:01:19.5]} 22. Qg5 {[%clk
0:02:32.1]} 22... Nxh5 {[%clk 0:00:54.2]} 23. c4 {[%clk 0:02:29.2]} 23... e6
{[%clk 0:00:40.1]} 24. Qg4 {[%clk 0:02:26.1]} 24... exf5 {[%clk 0:00:36.9]} 25.
exf5 {[%clk 0:02:25.7]} 25... Qf6 {[%clk 0:00:35.9]} 26. Ra3 {[%clk 0:02:22.3]}
26... Qd4+ {[%clk 0:00:27.5]} 27. Qxd4 {[%clk 0:02:21.7]} 27... cxd4 {[%clk
0:00:28.4]} 28. Bxf8 {[%clk 0:02:20.9]} 28... Kxf8 {[%clk 0:00:28.2]} 29. Rd3
{[%clk 0:02:21.1]} 29... Rb4 {[%clk 0:00:24.2]} 30. fxg6 {[%clk 0:02:20.6]}
30... hxg6 {[%clk 0:00:23.4]} 31. Rxd4 {[%clk 0:02:21]} 31... Rxc4 {[%clk
0:00:23.6]} 32. Rd2 {[%clk 0:02:21.2]} 32... Rxa4 {[%clk 0:00:22.8]} 33. Rb2
{[%clk 0:02:21.3]} 33... Bc4 {[%clk 0:00:21.4]} 34. Rb8+ {[%clk 0:02:20.3]}
34... Kg7 {[%clk 0:00:21.5]} 35. Rd8 {[%clk 0:02:20.3]} 35... Bxd5 {[%clk
0:00:20.5]} 36. Rxd6 {[%clk 0:02:21]} 36... Be6 {[%clk 0:00:20.7]} 37. Rd8
{[%clk 0:02:20.3]} 37... a5 {[%clk 0:00:20.8]} 38. Ra8 {[%clk 0:02:20.1]} 38...
Ra2 {[%clk 0:00:20.3]} 39. Ra7 {[%clk 0:02:17.5]} 39... a4 {[%clk 0:00:20.1]}
40. Ra6 {[%clk 0:02:16.7]} 40... a3 {[%clk 0:00:20.4]} 41. Ra7 {[%clk
0:02:16.7]} 41... Ra1+ {[%clk 0:00:20.6]} 42. Kh2 {[%clk 0:02:16.7]} 42... a2
{[%clk 0:00:21.5]} 43. g4 {[%clk 0:02:15.3]} 43... Rb1 {[%clk 0:00:20.4]} 44.
gxh5 {[%clk 0:02:15]} 44... a1=Q {[%clk 0:00:20.1]} 45. h6+ {[%clk 0:02:15]}
45... Kxh6 {[%clk 0:00:19.1]} 46. Ra8 {[%clk 0:02:13]} 46... Rh1+ {[%clk
0:00:17.7]} 47. Kg3 {[%clk 0:02:13.1]} 47... Qg1+ {[%clk 0:00:17.5]} 48. Kf3
{[%clk 0:02:13.2]} 48... Rh3+ {[%clk 0:00:17.3]} 49. Ke4 {[%clk 0:02:13.4]}
49... Qg4+ {[%clk 0:00:16.4]} 50. Ke5 {[%clk 0:02:13.5]} 50... Qf5+ {[%clk
0:00:16.4]} 51. Kd6 {[%clk 0:02:13.7]} 51... Qd5+ {[%clk 0:00:15.8]} 52. Ke7
{[%clk 0:02:13.7]} 52... Qxa8 {[%clk 0:00:15.5]} 53. Kf6 {[%clk 0:02:13.6]}
53... Qd8+ {[%clk 0:00:15.3]} 54. Ke5 {[%clk 0:02:13.5]} 54... Qd5+ {[%clk
0:00:14.8]} 55. Kf4 {[%clk 0:02:13.8]} 55... Qf5# {[%clk 0:00:14.2]} 0-1

[Event "Late-Titled-Tuesday-Blitz-November-28-2023"]
[Site "Chess.com"]
[Date "2023.11.28"]
[Round "10"]
[White "NCchamp"]
[Black "noblerone"]
[Result "0-1"]
[WhiteElo "2365"]
[BlackElo "2489"]
[TimeControl "180+1"]
[EndTime "15:50:40 PST"]
[Termination "noblerone won by resignation"]

1. e4 {[%clk 0:03:00]} 1... c5 {[%clk 0:02:51.7]} 2. Nc3 {[%clk 0:02:54.3]} 2...
e6 {[%clk 0:02:38.3]} 3. d4 {[%clk 0:02:54.1]} 3... cxd4 {[%clk 0:02:37.5]} 4.
Qxd4 {[%clk 0:02:55]} 4... Nc6 {[%clk 0:02:34.1]} 5. Qd3 {[%clk 0:02:53.3]} 5...
Nf6 {[%clk 0:02:32.1]} 6. Bf4 {[%clk 0:02:52.9]} 6... Bb4 {[%clk 0:02:24.9]} 7.
Ne2 {[%clk 0:02:50.4]} 7... d5 {[%clk 0:02:06.9]} 8. O-O-O {[%clk 0:02:40.7]}
8... O-O {[%clk 0:01:49.6]} 9. exd5 {[%clk 0:02:38.6]} 9... exd5 {[%clk
0:01:49.6]} 10. Nxd5 {[%clk 0:02:34.4]} 10... Nxd5 {[%clk 0:01:39.3]} 11. Qxd5
{[%clk 0:02:35.3]} 11... Qf6 {[%clk 0:01:35.6]} 12. Bg5 {[%clk 0:01:24.3]} 12...
Qxf2 {[%clk 0:01:17.5]} 13. c3 {[%clk 0:01:10.8]} 13... Be6 {[%clk 0:01:10.1]}
14. Qf3 {[%clk 0:00:48.3]} 14... Bc5 {[%clk 0:00:59.1]} 15. Qxf2 {[%clk
0:00:45.9]} 15... Bxf2 {[%clk 0:01:00]} 16. Kb1 {[%clk 0:00:30.7]} 16... h6
{[%clk 0:00:55.6]} 17. Bf4 {[%clk 0:00:30.5]} 17... Rfd8 {[%clk 0:00:51.7]} 18.
Rxd8+ {[%clk 0:00:20.1]} 18... Rxd8 {[%clk 0:00:50.7]} 19. Nc1 {[%clk
0:00:16.5]} 19... Rd1 {[%clk 0:00:44.3]} 20. Be2 {[%clk 0:00:14.9]} 20... Rxh1
{[%clk 0:00:42.4]} 0-1

[Event "Late-Titled-Tuesday-Blitz-November-28-2023"]
[Site "Chess.com"]
[Date "2023.11.28"]
[Round "10"]
[White "alexrustemov"]
[Black "grandemestregringo"]
[Result "1-0"]
[WhiteElo "2842"]
[BlackElo "2654"]
[TimeControl "180+1"]
[EndTime "15:50:46 PST"]
[Termination "alexrustemov won by resignation"]

1. d4 {[%clk 0:02:54.9]} 1... f5 {[%clk 0:02:59.8]} 2. g3 {[%clk 0:02:54.2]}
2... Nf6 {[%clk 0:02:59.9]} 3. Bg2 {[%clk 0:02:54.8]} 3... g6 {[%clk 0:03:00.6]}
4. Nf3 {[%clk 0:02:55.2]} 4... Bg7 {[%clk 0:03:01]} 5. O-O {[%clk 0:02:55.9]}
5... O-O {[%clk 0:03:00.8]} 6. c4 {[%clk 0:02:56.5]} 6... d6 {[%clk 0:02:59.7]}
7. Nc3 {[%clk 0:02:56.9]} 7... Qe8 {[%clk 0:02:58.7]} 8. d5 {[%clk 0:02:47.3]}
8... Na6 {[%clk 0:02:58]} 9. Be3 {[%clk 0:02:46.5]} 9... Bd7 {[%clk 0:02:57.4]}
10. Qd2 {[%clk 0:02:44.7]} 10... Ng4 {[%clk 0:02:56.6]} 11. Bd4 {[%clk
0:02:34.9]} 11... Bh6 {[%clk 0:02:56.7]} 12. e3 {[%clk 0:02:26.9]} 12... c5
{[%clk 0:02:44.6]} 13. dxc6 {[%clk 0:02:25.7]} 13... bxc6 {[%clk 0:02:45.5]} 14.
Ne2 {[%clk 0:02:22.1]} 14... Nc5 {[%clk 0:02:27.7]} 15. Bxc5 {[%clk 0:02:16.2]}
15... dxc5 {[%clk 0:02:26.9]} 16. h3 {[%clk 0:02:16.8]} 16... Nf6 {[%clk
0:02:22.1]} 17. Ne5 {[%clk 0:02:16.8]} 17... Rb8 {[%clk 0:02:20.9]} 18. Rad1
{[%clk 0:02:13.8]} 18... Be6 {[%clk 0:02:17.4]} 19. Bxc6 {[%clk 0:01:57.3]}
19... Qc8 {[%clk 0:02:07.8]} 20. Nf4 {[%clk 0:01:56.3]} 20... Bxc4 {[%clk
0:01:58.9]} 21. Nd5 {[%clk 0:01:50.6]} 21... Bxd5 {[%clk 0:01:50.1]} 22. Bxd5+
{[%clk 0:01:50]} 22... Kg7 {[%clk 0:01:42.1]} 23. Qc2 {[%clk 0:01:39.2]} 23...
f4 {[%clk 0:01:38.7]} 24. exf4 {[%clk 0:01:38.1]} 24... Qxh3 {[%clk 0:01:34.7]}
25. Bg2 {[%clk 0:01:37.6]} 25... Qe6 {[%clk 0:01:34.5]} 26. b3 {[%clk
0:01:37.3]} 26... Rfd8 {[%clk 0:01:15.5]} 27. Qxc5 {[%clk 0:01:36.4]} 27... Rxd1
{[%clk 0:01:09.8]} 28. Rxd1 {[%clk 0:01:36]} 28... Rb6 {[%clk 0:01:06.7]} 29.
Nc4 {[%clk 0:01:26.9]} 29... Ra6 {[%clk 0:01:05.3]} 30. a4 {[%clk 0:01:22.5]}
30... Qe2 {[%clk 0:00:58.2]} 31. Qd4 {[%clk 0:01:15.6]} 31... Re6 {[%clk
0:00:49.8]} 32. Qd3 {[%clk 0:01:14.7]} 32... Qa2 {[%clk 0:00:37.7]} 33. Bf3
{[%clk 0:01:11.4]} 33... g5 {[%clk 0:00:32.5]} 34. fxg5 {[%clk 0:01:06.1]} 34...
Bxg5 {[%clk 0:00:32.5]} 35. Qf5 {[%clk 0:01:03.9]} 1-0